bitfinex/quotes_BTCUSD_20241011
["timestamp","ask_amount","ask_price","bid_price","bid_amount"]
[1728659560553,0.00512536,62159.0,62158.0,0.61995892]
[1728659560756,0.00112536,62159.0,62158.0,0.61995892]
[1728659560973,0.00112536,62159.0,62158.0,0.62595892]
[1728659561197,0.00112536,62159.0,62158.0,0.62895892]
[1728659561842,0.00112536,62159.0,62158.0,0.61995892]
[1728659562726,0.00112536,62159.0,62158.0,0.67594477]
[1728659563577,0.00112536,62159.0,62158.0,0.60394477]
[1728659563792,0.00112536,62159.0,62158.0,0.5364368]
[1728659564003,0.00112536,62159.0,62158.0,0.38906781]
[1728659564433,0.00112536,62159.0,62158.0,0.38306781]
[1728659564654,0.00112536,62159.0,62158.0,0.39206781]
[1728659564886,0.00112536,62159.0,62158.0,0.52307019]
[1728659565101,0.00112536,62159.0,62158.0,0.51407019]
[1728659565375,0.00112536,62159.0,62158.0,0.52507019]
[1728659566188,0.00112536,62159.0,62158.0,0.53207019]
[1728659566410,0.00112536,62159.0,62158.0,0.6822942]
[1728659566828,0.00112536,62159.0,62158.0,0.6862942]
[1728659567029,0.00112536,62159.0,62158.0,0.6932942]
[1728659568090,0.00112536,62159.0,62158.0,0.79717562]
[1728659568292,0.00112536,62159.0,62158.0,0.84679944]
[1728659568498,0.00112536,62159.0,62158.0,0.70879706]
[1728659569089,0.00112536,62159.0,62158.0,0.65917324]
[1728659569344,0.00112536,62159.0,62158.0,0.39794923]
[1728659569554,0.00112536,62159.0,62158.0,0.1900196]
[1728659569710,0.00112536,62159.0,62158.0,0.18613347]
[1728659569914,0.01617735,62159.0,62158.0,0.18613347]
[1728659570116,0.02570689,62159.0,62158.0,0.18613347]
[1728659570474,0.01617735,62159.0,62158.0,0.17913347]
[1728659570687,0.01617735,62159.0,62158.0,0.16913347]
[1728659570893,0.01617735,62159.0,62158.0,0.17313347]
[1728659571108,0.01617735,62159.0,62158.0,0.16813347]
[1728659571320,0.00112536,62159.0,62158.0,0.16813347]
[1728659571527,0.01617583,62159.0,62158.0,0.17313347]
[1728659571775,0.02570521,62159.0,62158.0,0.16813347]
[1728659571982,0.01617583,62159.0,62158.0,0.16813347]
[1728659572435,0.01617583,62159.0,62158.0,0.17230521]
[1728659572660,0.01617583,62159.0,62158.0,0.33352922]
[1728659572661,0.00112536,62159.0,62158.0,0.33352922]
[1728659572865,0.00112536,62159.0,62158.0,0.49489893]
[1728659573092,0.00112536,62159.0,62158.0,0.49689893]
[1728659573719,0.00112536,62159.0,62158.0,0.50889893]
[1728659573937,0.00112536,62159.0,62158.0,0.49489893]
[1728659574148,0.00112536,62159.0,62158.0,0.50289893]
[1728659574356,0.00112536,62159.0,62158.0,0.51689893]
[1728659574570,0.00112536,62159.0,62158.0,0.33352922]
[1728659574805,0.00112536,62159.0,62158.0,0.34152922]
[1728659575025,0.00112536,62159.0,62158.0,0.35352922]
[1728659576287,0.00112536,62159.0,62158.0,0.19230521]
[1728659577254,0.00112536,62159.0,62158.0,0.33012162]
[1728659577467,0.00112536,62159.0,62158.0,0.19230521]
[1728659579205,0.00112536,62159.0,62158.0,0.20686889]
[1728659582692,0.00112536,62159.0,62158.0,0.20269715]
[1728659583563,0.08412536,62159.0,62158.0,0.20269715]
[1728659583805,0.1017497,62159.0,62158.0,0.18813347]
[1728659584059,0.11680272,62159.0,62158.0,0.18813347]
[1728659584261,0.09917838,62159.0,62158.0,0.16813347]
[1728659584475,0.09917838,62159.0,62158.0,0.17213347]
[1728659584687,0.08412536,62159.0,62158.0,0.17213347]
[1728659584899,0.09917746,62159.0,62158.0,0.17213347]
[1728659585110,0.1168018,62159.0,62158.0,0.17213347]
[1728659585327,0.09917746,62159.0,62158.0,0.17213347]
[1728659585552,0.09917746,62159.0,62158.0,0.17313347]
[1728659585975,0.09917746,62159.0,62158.0,0.17527404]
[1728659586178,0.12325809,62159.0,62158.0,0.01339404]
[1728659586387,0.20095575,62159.0,62158.0,0.17027404]
[1728659586598,0.20095575,62159.0,62158.0,0.01139404]
[1728659587046,0.19795575,62159.0,62158.0,0.17027404]
[1728659587471,0.20395575,62159.0,62158.0,0.163518]
[1728659587677,0.20395575,62159.0,62158.0,0.17128433]
[1728659588116,0.13225809,62159.0,62158.0,0.17128433]
[1728659588324,0.09312536,62159.0,62158.0,0.17128433]
[1728659588538,0.64408433,62159.0,62158.0,0.01040433]
[1728659588769,0.67120692,62159.0,62158.0,0.001638]
[1728659588978,0.83757663,62159.0,62158.0,0.002638]
[1728659589193,1.03942395,62159.0,62158.0,0.002638]
[1728659589419,1.06053744,62159.0,62158.0,0.002638]
[1728659589833,1.10166045,62159.0,62158.0,0.002638]
[1728659590240,1.10356802,62159.0,62158.0,0.002638]
[1728659590450,1.19662476,62159.0,62158.0,0.002638]
[1728659590938,1.17156272,62159.0,62158.0,0.002638]
[1728659591355,1.07529238,62159.0,62158.0,0.002638]
[1728659591674,1.17156272,62159.0,62158.0,0.002638]
[1728659592080,0.92261226,62159.0,62158.0,0.002638]
[1728659592280,0.89755022,62159.0,62158.0,0.002638]
[1728659592487,0.54727764,62159.0,62158.0,0.002638]
[1728659594737,0.54723398,62159.0,62158.0,0.002638]
[1728659595139,0.59532915,62159.0,62158.0,0.002638]
[1728659596146,0.54723398,62159.0,62158.0,0.002638]
[1728659597579,0.22430471,62159.0,62158.0,0.163518]
[1728659597803,0.04920471,62159.0,62158.0,0.163518]
[1728659598010,0.04920471,62159.0,62158.0,0.17134408]
[1728659598011,0.02515588,62159.0,62158.0,0.17134408]
[1728659598258,0.02598414,62159.0,62158.0,0.17134408]
[1728659598465,0.02098414,62159.0,62158.0,0.17034408]
[1728659598639,0.02098414,62159.0,62158.0,0.17134408]
[1728659598847,0.04425115,62159.0,62158.0,0.17134408]
[1728659598996,0.04025115,62159.0,62158.0,0.17134408]
[1728659599197,0.03442289,62159.0,62158.0,0.17034408]
[1728659599426,0.01798414,62159.0,62158.0,0.17234408]
[1728659599629,0.01088414,62159.0,62158.0,0.17234408]
[1728659600041,0.00182826,62159.0,62158.0,0.17234408]
[1728659600402,0.001,62159.0,62158.0,0.17234408]
[1728659601234,0.001,62159.0,62158.0,0.17651582]
[1728659601439,0.000818,62160.0,62159.0,0.160877]
[1728659601647,0.000818,62160.0,62159.0,0.16869183]
[1728659603453,0.000818,62160.0,62159.0,0.17369183]
[1728659604236,0.000818,62160.0,62159.0,0.17569183]
[1728659604453,0.000818,62160.0,62159.0,0.17069183]
[1728659604656,0.000818,62160.0,62159.0,0.16869183]
[1728659605034,0.000818,62160.0,62159.0,0.16969183]
[1728659605604,0.000818,62160.0,62159.0,0.17069183]
[1728659605867,0.077518,62160.0,62159.0,0.00981483]
[1728659606113,0.11842341,62160.0,62159.0,0.161877]
[1728659606315,0.10156878,62160.0,62159.0,0.165877]
[1728659606518,0.000818,62160.0,62159.0,0.165877]
[1728659609672,0.000818,62160.0,62159.0,0.161877]
[1728659609905,0.000818,62160.0,62159.0,0.167877]
[1728659610526,0.000818,62160.0,62159.0,0.166877]
[1728659610953,0.000818,62160.0,62159.0,0.169877]
[1728659611373,0.000818,62160.0,62159.0,0.4123032]
[1728659611575,0.000818,62160.0,62159.0,0.169877]
[1728659612610,0.000818,62160.0,62159.0,0.17404874]
[1728659613641,0.000818,62160.0,62159.0,0.16504874]
[1728659614052,0.000818,62160.0,62159.0,0.30572693]
[1728659614669,0.000818,62160.0,62159.0,0.4946298]
[1728659615254,0.000818,62160.0,62159.0,0.4876298]
[1728659615462,0.000818,62160.0,62159.0,0.4906298]
[1728659615696,0.000818,62160.0,62159.0,0.4966298]
[1728659615922,0.000818,62160.0,62159.0,0.65785381]
[1728659618678,0.000818,62160.0,62159.0,0.73515381]
[1728659619090,0.000818,62160.0,62159.0,0.73679181]
[1728659619983,0.000818,62160.0,62159.0,0.73079181]
[1728659620191,0.000818,62160.0,62159.0,0.74179181]
[1728659620605,0.000818,62160.0,62159.0,0.75179181]
[1728659620888,0.000818,62160.0,62159.0,0.85379181]
[1728659621101,0.000818,62160.0,62159.0,0.89337693]
[1728659621310,0.000818,62160.0,62159.0,0.85479181]
[1728659622015,0.000818,62160.0,62159.0,0.87735881]
[1728659622252,0.000818,62160.0,62159.0,0.85579181]
[1728659622688,0.000818,62160.0,62159.0,0.84179181]
[1728659622933,0.000818,62160.0,62159.0,0.66688894]
[1728659623199,0.000818,62160.0,62159.0,0.85579181]
[1728659625376,0.000818,62160.0,62159.0,0.72211362]
[1728659628584,0.000318,62160.0,62159.0,0.72211362]
[1728659631793,0.035918,62171.0,62170.0,0.160849]
[1728659632243,0.05096459,62171.0,62170.0,0.160849]
[1728659632955,0.05096459,62171.0,62170.0,0.168849]
[1728659633444,0.05096459,62171.0,62170.0,0.172849]
[1728659633660,0.05096474,62171.0,62170.0,0.172849]
[1728659635352,0.05086474,62171.0,62170.0,0.172849]
[1728659635765,0.05086672,62171.0,62170.0,0.172849]
[1728659635974,0.035818,62171.0,62170.0,0.172849]
[1728659636407,0.0508724,62171.0,62170.0,0.172849]
[1728659637051,0.035818,62171.0,62170.0,0.172849]
[1728659637269,0.0508717,62171.0,62170.0,0.172849]
[1728659637486,0.2432943,62171.0,62170.0,0.012]
[1728659637696,0.2432943,62171.0,62170.0,0.172849]
[1728659638338,0.2432943,62171.0,62170.0,0.164849]
[1728659639210,0.2432943,62171.0,62170.0,0.160849]
[1728659640319,0.2432943,62171.0,62169.0,0.16085]
[1728659640534,0.20414626,62171.0,62170.0,0.160849]
[1728659640736,0.2433162,62171.0,62170.0,0.160849]
[1728659641170,0.15088794,62171.0,62170.0,0.160849]
[1728659641419,0.07498794,62171.0,62170.0,0.160849]
[1728659642774,0.07498794,62171.0,62170.0,0.164849]
[1728659642983,0.07580694,62171.0,62170.0,0.164849]
[1728659643156,0.07581068,62171.0,62170.0,0.164849]
[1728659644930,0.07581068,62171.0,62170.0,0.004]
[1728659645101,0.60856994,62171.0,62170.0,0.004]
[1728659645286,0.65665599,62171.0,62170.0,0.004]
[1728659645737,0.00082826,62168.0,62164.0,0.2424262]
[1728659645942,0.00082826,62161.0,62160.0,0.160874]
[1728659646146,0.00082826,62161.0,62160.0,0.160875]
[1728659646147,0.08834357,62161.0,62160.0,0.160875]
[1728659646353,0.16205227,62161.0,62157.0,0.001632]
[1728659646524,0.32292727,62160.0,62157.0,0.001632]
[1728659646722,0.03999113,62160.0,62159.0,0.162515]
[1728659646998,0.03916287,62160.0,62159.0,0.162515]
[1728659647518,0.03911823,62160.0,62159.0,0.162515]
[1728659648772,0.03911823,62160.0,62159.0,0.003638]
[1728659648972,0.09618899,62160.0,62159.0,0.003638]
[1728659649174,0.09618899,62160.0,62159.0,0.164515]
[1728659649175,0.03911823,62160.0,62159.0,0.164515]
[1728659650879,0.03994649,62160.0,62159.0,0.001638]
[1728659651095,0.03994649,62160.0,62159.0,0.162515]
[1728659651722,0.02489083,62160.0,62159.0,0.162515]
[1728659651948,0.02406257,62160.0,62159.0,0.162515]
[1728659652144,0.12835308,62167.0,62159.0,0.001638]
[1728659652357,0.0240578,62166.0,62165.0,0.160862]
[1728659652562,0.08479008,62171.0,62170.0,0.160849]
[1728659652764,0.06069201,62171.0,62170.0,0.160849]
[1728659654834,0.06069201,62171.0,62170.0,0.162849]
[1728659655258,0.036637,62171.0,62170.0,0.43235187]
[1728659655470,0.036637,62171.0,62170.0,0.162849]
[1728659658715,0.036337,62171.0,62170.0,0.162849]
[1728659659001,0.06040132,62171.0,62170.0,0.002]
[1728659659482,0.06040132,62171.0,62170.0,0.162849]
[1728659659732,0.0754427,62171.0,62170.0,0.162849]
[1728659660854,0.07544574,62171.0,62170.0,0.162849]
[1728659661516,0.07544574,62171.0,62170.0,0.29989102]
[1728659661740,0.05137882,62171.0,62170.0,0.29989102]
[1728659662187,0.05137882,62171.0,62170.0,0.162849]
[1728659662644,0.0003,62176.0,62175.0,0.34973887]
[1728659662887,0.001118,62188.0,62187.0,0.160805]
[1728659663344,0.001118,62188.0,62187.0,0.36049251]
[1728659663569,0.001118,62188.0,62187.0,0.54939538]
[1728659664044,0.001118,62188.0,62187.0,0.64939538]
[1728659664268,0.001118,62188.0,62187.0,0.27658964]
[1728659664487,0.001118,62188.0,62187.0,0.47449251]
[1728659664711,0.001118,62188.0,62187.0,0.46549251]
[1728659664927,0.001118,62188.0,62187.0,0.65439538]
[1728659665165,0.001118,62188.0,62187.0,0.66839538]
[1728659665364,0.001118,62188.0,62187.0,0.47949251]
[1728659666005,0.001118,62188.0,62187.0,0.56449251]
[1728659666434,0.001118,62188.0,62187.0,0.55049251]
[1728659666725,0.001118,62188.0,62187.0,0.55849251]
[1728659666967,0.001118,62188.0,62187.0,0.18558964]
[1728659667441,0.001118,62188.0,62187.0,0.19958964]
[1728659667657,0.001118,62188.0,62187.0,0.30861722]
[1728659668331,0.011118,62188.0,62187.0,0.28061722]
[1728659668544,0.011118,62188.0,62187.0,0.29361722]
[1728659669175,0.011118,62188.0,62187.0,0.28061722]
[1728659669336,0.011118,62188.0,62187.0,0.29361722]
[1728659669537,0.011118,62188.0,62187.0,0.29861722]
[1728659669716,0.011118,62188.0,62187.0,0.28561722]
[1728659670129,0.011118,62188.0,62187.0,0.30361722]
[1728659670569,0.011118,62188.0,62187.0,0.46484123]
[1728659672674,0.011118,62188.0,62187.0,0.6537441]
[1728659672898,0.002,62192.0,62191.0,0.241794]
[1728659673127,0.002,62192.0,62191.0,0.75650592]
[1728659673333,0.002,62192.0,62191.0,0.76423908]
[1728659673749,0.002,62192.0,62191.0,0.57533621]
[1728659673960,0.002,62192.0,62191.0,0.60301507]
[1728659674434,0.002,62192.0,62191.0,0.76423908]
[1728659674651,0.002,62192.0,62191.0,0.76723908]
[1728659674856,0.002,62192.0,62191.0,0.78123908]
[1728659675264,0.002,62192.0,62191.0,0.77823908]
[1728659675467,0.002,62192.0,62191.0,0.78823908]
[1728659676069,0.002,62192.0,62191.0,0.76423908]
[1728659676289,0.002,62192.0,62191.0,0.79023908]
[1728659676502,0.002,62192.0,62191.0,0.87623908]
[1728659676982,0.002,62192.0,62191.0,0.89023908]
[1728659677189,0.002,62192.0,62191.0,0.87623908]
[1728659677397,0.002,62192.0,62191.0,0.89023908]
[1728659677600,0.002,62192.0,62191.0,0.87823908]
[1728659677808,0.002819,62192.0,62191.0,0.89023908]
[1728659678036,0.002819,62192.0,62191.0,0.70133621]
[1728659678278,0.002819,62192.0,62191.0,0.87823908]
[1728659678482,0.002819,62192.0,62191.0,0.88023908]
[1728659678692,0.002819,62192.0,62191.0,0.89323908]
[1728659678901,0.0169472,62195.0,62194.0,0.167787]
[1728659679160,0.0169472,62195.0,62194.0,0.42087465]
[1728659679396,0.0169472,62195.0,62194.0,0.43370631]
[1728659679682,0.05466825,62223.0,62199.0,0.160774]
[1728659679925,0.2424262,62219.0,62218.0,0.160725]
[1728659680178,0.005,62225.0,62223.0,0.160712]
[1728659680424,0.18128301,62224.0,62218.0,0.01059142]
[1728659680686,0.16633401,62224.0,62223.0,0.0105414]
[1728659680936,0.0954157,62226.0,62220.0,0.160719]
[1728659681119,0.002,62225.0,62223.0,0.0105414]
[1728659681387,0.2561217,62226.0,62221.0,0.2424262]
[1728659681603,0.0954157,62226.0,62221.0,0.2424262]
[1728659681815,0.0029431,62229.0,62222.0,0.0105514]
[1728659682032,0.321399,62228.0,62222.0,0.0105514]
[1728659682271,0.35306998,62229.0,62224.0,0.160709]
[1728659682479,0.35306998,62229.0,62224.0,0.160707]
[1728659682684,0.16416711,62229.0,62225.0,0.01052139]
[1728659682895,0.16416711,62229.0,62226.0,0.160703]
[1728659683105,0.0029431,62229.0,62225.0,0.01052139]
[1728659683307,0.0029431,62229.0,62224.0,0.321418]
[1728659683308,0.0029431,62229.0,62224.0,0.321416]
[1728659683513,0.0029431,62229.0,62225.0,0.01052139]
[1728659683715,0.0029431,62229.0,62225.0,0.17122839]
[1728659683919,0.0029431,62229.0,62225.0,0.01052139]
[1728659684361,0.0029431,62229.0,62224.0,0.160709]
[1728659684575,0.0029431,62229.0,62225.0,0.01052139]
[1728659684576,0.0129431,62229.0,62225.0,0.01052139]
[1728659685007,0.0129431,62229.0,62222.0,0.321429]
[1728659685278,0.0129431,62229.0,62228.0,0.2424262]
[1728659685497,0.0129431,62229.0,62228.0,0.160699]
[1728659687039,0.0129431,62229.0,62228.0,0.165699]
[1728659688191,0.0129431,62229.0,62228.0,0.166699]
[1728659688637,0.0129431,62229.0,62228.0,0.165699]
[1728659689053,0.0129431,62229.0,62228.0,0.4081252]
[1728659689267,0.0129431,62229.0,62228.0,0.4141252]
[1728659689480,0.1,62239.0,62228.0,0.57534921]
[1728659689698,0.1,62239.0,62238.0,0.34957587]
[1728659690580,0.1,62239.0,62238.0,0.51079988]
[1728659690794,0.1,62239.0,62238.0,0.87610275]
[1728659691245,1.0,62240.0,62238.0,0.87610275]
[1728659691246,0.54177762,62240.0,62239.0,0.16567]
[1728659691465,0.04,62248.0,62247.0,0.16022206]
[1728659691686,0.04,62248.0,62247.0,0.51534894]
[1728659691908,0.04,62248.0,62247.0,0.59383664]
[1728659692149,0.04,62248.0,62247.0,0.87253664]
[1728659692365,0.00838095,62250.0,62248.0,0.00488079]
[1728659692366,0.7626371,62249.0,62248.0,0.00488079]
[1728659692611,0.7626371,62249.0,62248.0,0.4267518]
[1728659692612,0.6983791,62249.0,62248.0,0.4267518]
[1728659692827,0.6983791,62249.0,62248.0,0.43762119]
[1728659693059,0.6983791,62249.0,62248.0,0.81291667]
[1728659693293,0.67655475,62249.0,62248.0,0.57049047]
[1728659694158,0.67655475,62249.0,62248.0,0.58449047]
[1728659694363,0.67655475,62249.0,62248.0,0.82691667]
[1728659694568,0.67655475,62249.0,62248.0,0.58449047]
[1728659694775,0.67655475,62249.0,62248.0,0.59849047]
[1728659694981,0.65369475,62249.0,62248.0,0.58449047]
[1728659695408,0.65369475,62249.0,62248.0,0.59849047]
[1728659695840,0.65369475,62249.0,62248.0,0.35162119]
[1728659696059,0.65369475,62249.0,62248.0,0.3327404]
[1728659696319,0.65369475,62249.0,62248.0,0.3467404]
[1728659696527,0.65369475,62249.0,62248.0,0.17151639]
[1728659696740,0.65369475,62249.0,62248.0,0.18551639]
[1728659696949,0.65369475,62249.0,62248.0,0.33383081]
[1728659697186,0.65369475,62249.0,62248.0,0.31983081]
[1728659697618,0.65369475,62249.0,62248.0,0.32383081]
[1728659697839,0.65369475,62249.0,62248.0,0.19439718]
[1728659698050,0.65369475,62249.0,62248.0,0.17551639]
[1728659698051,0.66859918,62249.0,62248.0,0.17551639]
[1728659698268,0.65369475,62249.0,62248.0,0.17651639]
[1728659698921,0.65369475,62249.0,62248.0,0.18139718]
[1728659699125,0.65369475,62249.0,62248.0,0.30993081]
[1728659699549,0.66369475,62249.0,62248.0,0.47115482]
[1728659700021,0.66369475,62249.0,62248.0,0.34262119]
[1728659700482,0.66369475,62249.0,62248.0,0.58504739]
[1728659700934,0.66369475,62249.0,62248.0,0.34262119]
[1728659701369,0.66451275,62249.0,62248.0,0.34262119]
[1728659702604,0.66451275,62249.0,62248.0,0.58504739]
[1728659702777,0.66311275,62249.0,62248.0,0.7464171]
[1728659702986,0.66311275,62249.0,62248.0,0.5039909]
[1728659703381,0.66311275,62249.0,62248.0,0.79289377]
[1728659703789,0.66311275,62249.0,62248.0,0.78889377]
[1728659703993,0.66311275,62249.0,62248.0,0.87859377]
[1728659704277,0.66311275,62249.0,62248.0,0.87759377]
[1728659704453,0.66311275,62249.0,62248.0,0.87359377]
[1728659705006,0.50246775,62249.0,62248.0,0.86859377]
[1728659705203,0.50246775,62249.0,62248.0,0.87059377]
[1728659705489,0.50246775,62249.0,62248.0,0.88459377]
[1728659705826,0.50246775,62249.0,62248.0,0.88259377]
[1728659706027,0.50246775,62249.0,62248.0,0.89659377]
[1728659706229,0.47033875,62249.0,62248.0,0.88259377]
[1728659706460,0.3680724,62249.0,62248.0,0.88259377]
[1728659706664,0.00156581,62260.0,62259.0,0.33869979]
[1728659706870,0.2424262,62279.0,62269.0,0.16547379]
[1728659707043,0.18890287,62276.0,62269.0,0.160593]
[1728659707245,0.18890287,62272.0,62269.0,0.160593]
[1728659707488,0.0825,62281.0,62269.0,0.160593]
[1728659707489,0.11490843,62270.0,62269.0,0.160593]
[1728659707862,0.11490843,62270.0,62269.0,0.56424321]
[1728659708220,0.11490843,62270.0,62269.0,0.160593]
[1728659708451,0.13876792,62270.0,62262.0,0.00488079]
[1728659708663,0.13876792,62270.0,62260.0,0.5636582]
[1728659708664,0.18890287,62261.0,62260.0,0.2424262]
[1728659708867,0.18890287,62261.0,62243.0,0.0821]
[1728659708868,0.160632,62254.0,62243.0,0.321318]
[1728659709063,0.46780279,62254.0,62243.0,0.321318]
[1728659709268,0.11826792,62254.0,62243.0,0.321318]
[1728659709477,0.11826792,62254.0,62246.0,0.4030762]
[1728659709478,0.16064,62251.0,62246.0,0.4030762]
[1728659709684,0.26840287,62254.0,62249.0,0.160645]
[1728659709685,0.03876792,62250.0,62249.0,0.160645]
[1728659709858,0.01490843,62250.0,62249.0,0.160645]
[1728659710350,0.01490843,62250.0,62249.0,0.32186901]
[1728659710591,0.0798,62261.0,62249.0,0.16122401]
[1728659710806,0.0798,62261.0,62254.0,0.321263]
[1728659710807,0.01492983,62260.0,62254.0,0.321263]
[1728659711012,0.01492983,62259.0,62250.0,0.52336011]
[1728659711226,0.18890287,62254.0,62252.0,0.160636]
[1728659711447,0.18890287,62258.0,62253.0,0.2434262]
[1728659711714,0.03884302,62257.0,62253.0,0.001]
[1728659711918,0.03884302,62256.0,62253.0,0.001]
[1728659712132,0.03884302,62255.0,62251.0,0.321278]
[1728659712362,0.18890287,62258.0,62252.0,0.0321278]
[1728659712588,0.03886118,62257.0,62253.0,0.321269]
[1728659712811,0.03886118,62256.0,62253.0,0.321269]
[1728659713029,0.03886118,62255.0,62254.0,0.19597168]
[1728659713236,0.03886118,62255.0,62254.0,0.160632]
[1728659713906,0.03886118,62255.0,62248.0,0.001636]
[1728659714112,0.03886118,62254.0,62251.0,0.160638]
[1728659714332,0.03886118,62253.0,62252.0,0.160635]
[1728659714540,0.03886118,62253.0,62252.0,0.160637]
[1728659714997,0.03886118,62253.0,62248.0,0.32293]
[1728659715207,0.03886118,62253.0,62248.0,0.001636]
[1728659715208,0.03886118,62252.0,62248.0,0.001636]
[1728659715415,0.34954687,62250.0,62248.0,0.001636]
[1728659715626,0.19950618,62249.0,62248.0,0.001636]
[1728659715836,0.13596118,62249.0,62248.0,0.001636]
[1728659716042,0.13596118,62249.0,62248.0,0.24931592]
[1728659716043,0.03886118,62249.0,62248.0,0.24931592]
[1728659716256,0.03886118,62249.0,62248.0,0.160647]
[1728659716485,0.03886118,62249.0,62246.0,0.3213]
[1728659716486,0.03786118,62249.0,62247.0,0.16065]
[1728659716723,0.18890287,62251.0,62247.0,0.16065]
[1728659716724,0.02391457,62248.0,62247.0,0.16065]
[1728659716926,0.0783,62247.0,62243.0,0.160659]
[1728659717137,0.0783,62247.0,62237.0,0.00198]
[1728659717138,0.002,62243.0,62237.0,0.00198]
[1728659717344,0.18890287,62245.0,62237.0,0.00198]
[1728659717345,0.18890287,62238.0,62237.0,0.00198]
[1728659717554,0.02398061,62238.0,62237.0,0.484006]
[1728659717758,0.02398061,62238.0,62237.0,0.162656]
[1728659717961,0.02398061,62238.0,62237.0,0.157656]
[1728659718210,0.02398061,62238.0,62235.0,0.321362]
[1728659718417,0.096,62241.0,62238.0,0.160671]
[1728659718619,0.02398881,62240.0,62237.0,0.321351]
[1728659718833,0.02398881,62239.0,62238.0,0.160672]
[1728659719037,0.02398881,62239.0,62235.0,0.321361]
[1728659719250,0.096,62241.0,62234.0,0.321364]
[1728659719251,0.096,62241.0,62234.0,0.321367]
[1728659719484,0.18890287,62239.0,62234.0,0.160682]
[1728659719691,0.18890287,62239.0,62231.0,0.321379]
[1728659719692,0.18467603,62238.0,62231.0,0.321379]
[1728659719901,0.160673,62238.0,62237.0,0.002]
[1728659720123,0.160673,62238.0,62234.0,0.2424262]
[1728659720124,0.02399775,62238.0,62234.0,0.2424262]
[1728659720374,0.18902208,62239.0,62230.0,0.321383]
[1728659720375,0.02500508,62235.0,62230.0,0.321383]
[1728659720590,0.02499336,62236.0,62230.0,0.321386]
[1728659720764,0.02499336,62233.0,62232.0,0.160689]
[1728659721000,0.02499336,62235.0,62231.0,0.001]
[1728659721178,0.0239939,62234.0,62232.0,0.160687]
[1728659721443,0.0239939,62233.0,62232.0,0.160687]
[1728659721654,0.0239939,62233.0,62230.0,0.002]
[1728659721941,0.1060939,62232.0,62230.0,0.002]
[1728659722174,0.0821,62232.0,62231.0,0.160691]
[1728659722409,0.10608007,62232.0,62231.0,0.26515922]
[1728659722638,0.10608007,62232.0,62231.0,0.160691]
[1728659723080,0.10608007,62232.0,62231.0,0.162691]
[1728659723301,0.10608007,62232.0,62231.0,0.160691]
[1728659723737,0.10608007,62232.0,62231.0,0.164691]
[1728659723968,0.10606487,62232.0,62226.0,0.001636]
[1728659724183,0.0821,62232.0,62227.0,0.2424262]
[1728659724390,0.02396524,62231.0,62227.0,0.3214]
[1728659724599,0.02396524,62230.0,62228.0,0.160697]
[1728659724817,0.27100287,62232.0,62227.0,0.321402]
[1728659725032,0.02396019,62231.0,62228.0,0.160699]
[1728659725262,0.27100287,62232.0,62226.0,0.001636]
[1728659725263,0.18890287,62229.0,62226.0,0.001636]
[1728659725480,0.0793,62238.0,62236.0,0.160678]
[1728659725715,0.0793,62238.0,62229.0,0.321392]
[1728659725716,0.02395357,62237.0,62231.0,0.160691]
[1728659725930,0.02496338,62243.0,62236.0,0.2424262]
[1728659726132,0.02395332,62242.0,62235.0,0.18890287]
[1728659726344,0.402192,62249.0,62232.0,0.16122401]
[1728659726345,0.10586338,62249.0,62232.0,0.16122401]
[1728659726578,0.10586338,62249.0,62239.0,0.32134]
[1728659726579,0.0239512,62247.0,62239.0,0.32134]
[1728659726790,0.0239512,62246.0,62238.0,0.160672]
[1728659726992,0.0809,62249.0,62244.0,0.321315]
[1728659727197,0.03892012,62247.0,62236.0,0.002]
[1728659727416,0.160655,62245.0,62241.0,0.160664]
[1728659727666,0.402192,62249.0,62240.0,0.321334]
[1728659727667,0.02395085,62244.0,62240.0,0.321334]
[1728659727918,0.004,62242.0,62241.0,0.160665]
[1728659728433,0.04291779,62242.0,62241.0,0.160665]
[1728659729155,0.04291779,62242.0,62238.0,0.321344]
[1728659729398,0.03891779,62241.0,62240.0,0.160666]
[1728659729885,0.03891779,62241.0,62226.0,0.00651679]
[1728659730161,0.160672,62239.0,62235.0,0.4031062]
[1728659730395,0.160672,62239.0,62226.0,0.00651679]
[1728659730396,0.18890287,62239.0,62233.0,0.160686]
[1728659730669,0.18890287,62239.0,62230.0,0.160692]
[1728659730670,0.160684,62234.0,62230.0,0.160692]
[1728659730898,0.03891779,62233.0,62230.0,0.160693]
[1728659731169,0.19960679,62232.0,62228.0,0.2424262]
[1728659731418,0.03892816,62231.0,62228.0,0.2464262]
[1728659731663,0.075,62234.0,62228.0,0.2464262]
[1728659731664,0.03892816,62230.0,62228.0,0.2464262]
[1728659731896,0.075,62234.0,62230.0,0.160692]
[1728659732138,0.038924,62233.0,62228.0,0.325393]
[1728659732340,0.235685,62234.0,62231.0,0.16055276]
[1728659732341,0.038924,62232.0,62231.0,0.16055276]
[1728659733478,0.039924,62232.0,62231.0,0.160691]
[1728659733692,0.039924,62232.0,62228.0,0.321393]
[1728659733693,0.005,62232.0,62228.0,0.321393]
[1728659733902,0.01496976,62231.0,62226.0,0.001636]
[1728659734121,0.2178545,62232.0,62226.0,0.001636]
[1728659734122,0.03892146,62230.0,62229.0,0.160696]
[1728659734887,0.03892146,62230.0,62229.0,0.26565372]
[1728659735146,0.03892146,62230.0,62229.0,0.26550847]
[1728659735401,0.005,62232.0,62231.0,0.26557179]
[1728659735402,0.001,62232.0,62231.0,0.26557179]
[1728659735667,0.001,62232.0,62231.0,0.50657869]
[1728659735915,0.004,62232.0,62231.0,0.50336591]
[1728659736170,0.000818,62248.0,62246.0,0.00488079]
[1728659736385,0.000818,62248.0,62247.0,0.51887025]
[1728659736618,0.000818,62248.0,62247.0,0.69831539]
[1728659736834,0.000818,62248.0,62247.0,0.79831539]
[1728659737091,0.000818,62248.0,62247.0,0.57011252]
[1728659737762,0.000818,62248.0,62247.0,0.81253872]
[1728659737996,0.000818,62248.0,62247.0,0.57511252]
[1728659738643,0.000818,62248.0,62247.0,0.57011252]
[1728659739052,0.000818,62248.0,62247.0,0.59811252]
[1728659739253,0.000818,62248.0,62247.0,0.58411252]
[1728659739657,0.000818,62248.0,62247.0,0.57011252]
[1728659739884,0.000818,62248.0,62247.0,0.84553872]
[1728659740099,0.000818,62248.0,62247.0,0.58911252]
[1728659740100,1e-06,62248.0,62247.0,0.58911252]
[1728659740724,1e-06,62248.0,62247.0,0.58611252]
[1728659740986,1e-06,62248.0,62247.0,0.82853872]